[Event "*** SCC Grand Prix: Titled Tuesday Blitz"]
[Site "Chess.com"]
[Date "2020.06.02"]
[Round "1"]
[White "chenxiaoyuer"]
[Black "GjakanTati"]
[Result "1-0"]
[WhiteElo "2304"]
[BlackElo "2610"]
[TimeControl "180+1"]
[EndTime "10:07:17 PDT"]
[Termination "chenxiaoyuer won by resignation"]

1. e4 {[%clk 0:03:00.9]} 1... e6 {[%clk 0:02:57.9]} 2. d4 {[%clk 0:03:00.7]}
2... d5 {[%clk 0:02:57.1]} 3. Nd2 {[%clk 0:02:57.2]} 3... c5 {[%clk 0:02:54.7]}
4. Ngf3 {[%clk 0:02:56.5]} 4... cxd4 {[%clk 0:02:51.1]} 5. Nxd4 {[%clk
0:02:56.2]} 5... e5 {[%clk 0:02:39.3]} 6. N4f3 {[%clk 0:02:13.5]} 6... Nc6
{[%clk 0:02:28.6]} 7. exd5 {[%clk 0:02:09.7]} 7... Qxd5 {[%clk 0:02:29.5]} 8.
Bc4 {[%clk 0:02:06.6]} 8... Qa5 {[%clk 0:02:29.5]} 9. O-O {[%clk 0:02:04.7]}
9... Bf5 {[%clk 0:02:21.7]} 10. Re1 {[%clk 0:01:54.8]} 10... O-O-O {[%clk
0:02:05.1]} 11. Bxf7 {[%clk 0:01:33.9]} 11... Nh6 {[%clk 0:01:57.7]} 12. Bb3
{[%clk 0:01:23]} 12... e4 {[%clk 0:01:56.4]} 13. Ng5 {[%clk 0:01:10]} 13... Bg4
{[%clk 0:01:55.3]} 14. Be6+ {[%clk 0:01:09.5]} 14... Bxe6 {[%clk 0:01:50]} 15.
Nxe6 {[%clk 0:01:09]} 15... Rd6 {[%clk 0:01:42.9]} 16. Nxf8 {[%clk 0:01:03.3]}
16... Rxf8 {[%clk 0:01:43.8]} 17. c3 {[%clk 0:00:38.5]} 17... Qb6 {[%clk
0:01:30.8]} 18. Qe2 {[%clk 0:00:28.1]} 18... Re6 {[%clk 0:01:22.4]} 19. Nc4
{[%clk 0:00:25.9]} 19... Qc7 {[%clk 0:01:17.7]} 20. h3 {[%clk 0:00:20.5]} 20...
Nf5 {[%clk 0:01:15.9]} 21. Ne3 {[%clk 0:00:20.4]} 21... Nce7 {[%clk 0:01:07.9]}
22. Nxf5 {[%clk 0:00:19.9]} 22... Nxf5 {[%clk 0:01:08.8]} 23. Be3 {[%clk
0:00:19.7]} 23... Rg6 {[%clk 0:01:04.9]} 24. Kh1 {[%clk 0:00:15]} 24... Nh4
{[%clk 0:01:04.3]} 25. Rg1 {[%clk 0:00:12.7]} 25... a6 {[%clk 0:00:58.6]} 26.
Rad1 {[%clk 0:00:11.6]} 26... Nf3 {[%clk 0:00:45.9]} 27. gxf3 {[%clk 0:00:10.4]}
27... Rxf3 {[%clk 0:00:46.8]} 28. Rxg6 {[%clk 0:00:04.9]} 28... Rxh3+ {[%clk
0:00:44.8]} 29. Kg2 {[%clk 0:00:04.8]} 29... Rh2+ {[%clk 0:00:40.6]} 30. Kg1
{[%clk 0:00:04.7]} 30... Rh4 {[%clk 0:00:30.1]} 31. Rg2 {[%clk 0:00:04.4]} 31...
Qc6 {[%clk 0:00:20.8]} 32. Bg5 {[%clk 0:00:04.1]} 32... Rh3 {[%clk 0:00:16.7]}
33. Qg4+ {[%clk 0:00:04.2]} 33... Kb8 {[%clk 0:00:17.1]} 34. Qxh3 {[%clk
0:00:04.5]} 34... Qa4 {[%clk 0:00:17.1]} 35. Rf1 {[%clk 0:00:03.8]} 35... Qxa2
{[%clk 0:00:16.8]} 36. Qe3 {[%clk 0:00:04]} 36... Qxb2 {[%clk 0:00:16.5]} 37.
Qxe4 {[%clk 0:00:04.1]} 37... Qxc3 {[%clk 0:00:16.9]} 38. Rb1 {[%clk 0:00:04.4]}
1-0

[Event "*** SCC Grand Prix: Titled Tuesday Blitz"]
[Site "Chess.com"]
[Date "2020.06.02"]
[Round "1"]
[White "GM_dmitrij"]
[Black "PlotnikovPavel"]
[Result "1-0"]
[WhiteElo "2944"]
[BlackElo "2443"]
[TimeControl "180+1"]
[EndTime "10:07:18 PDT"]
[Termination "GM_dmitrij won on time"]

1. e4 {[%clk 0:03:00.9]} 1... e6 {[%clk 0:03:00.1]} 2. d4 {[%clk 0:03:00.6]}
2... d5 {[%clk 0:02:59.4]} 3. Nd2 {[%clk 0:03:00.7]} 3... Be7 {[%clk 0:02:53.1]}
4. Bd3 {[%clk 0:02:58.4]} 4... dxe4 {[%clk 0:02:52.3]} 5. Nxe4 {[%clk
0:02:57.8]} 5... Nf6 {[%clk 0:02:53.2]} 6. Nf3 {[%clk 0:02:55.5]} 6... O-O
{[%clk 0:02:52.6]} 7. c3 {[%clk 0:02:37.5]} 7... Nbd7 {[%clk 0:02:51.7]} 8. O-O
{[%clk 0:02:37.2]} 8... b6 {[%clk 0:02:51.4]} 9. Qe2 {[%clk 0:02:22.4]} 9... Bb7
{[%clk 0:02:51]} 10. Nxf6+ {[%clk 0:02:19.8]} 10... Nxf6 {[%clk 0:02:45.8]} 11.
Bg5 {[%clk 0:02:19.4]} 11... c5 {[%clk 0:02:35.2]} 12. dxc5 {[%clk 0:02:14.9]}
12... bxc5 {[%clk 0:02:33.6]} 13. Rad1 {[%clk 0:02:14.8]} 13... Qb6 {[%clk
0:02:33]} 14. Ne5 {[%clk 0:02:11.3]} 14... Rfd8 {[%clk 0:02:28.8]} 15. Rd2
{[%clk 0:02:02.1]} 15... h6 {[%clk 0:02:10.2]} 16. Bh4 {[%clk 0:01:59.2]} 16...
Rd5 {[%clk 0:01:35.5]} 17. Rfd1 {[%clk 0:01:46.2]} 17... Rad8 {[%clk 0:01:35.2]}
18. Bg3 {[%clk 0:01:40.1]} 18... a5 {[%clk 0:01:15]} 19. Nc4 {[%clk 0:01:21.2]}
19... Qa7 {[%clk 0:01:12.9]} 20. Ne3 {[%clk 0:00:53.3]} 20... R5d7 {[%clk
0:00:55.4]} 21. h3 {[%clk 0:00:53.2]} 21... Be4 {[%clk 0:00:43]} 22. Bb5 {[%clk
0:00:44.2]} 22... Rxd2 {[%clk 0:00:41]} 23. Rxd2 {[%clk 0:00:45.1]} 23... Rxd2
{[%clk 0:00:40.8]} 24. Qxd2 {[%clk 0:00:46]} 24... Qb7 {[%clk 0:00:36.3]} 25. a4
{[%clk 0:00:44.7]} 25... Nd5 {[%clk 0:00:34.4]} 26. Nc4 {[%clk 0:00:41.9]} 26...
Bxg2 {[%clk 0:00:11.4]} 27. Nxa5 {[%clk 0:00:33]} 27... Qa8 {[%clk 0:00:11.1]}
28. Nc6 {[%clk 0:00:31.5]} 28... Bxh3 {[%clk 0:00:07.7]} 29. c4 {[%clk 0:00:29]}
29... Bf6 {[%clk 0:00:03.5]} 30. cxd5 {[%clk 0:00:28.1]} 30... exd5 {[%clk
0:00:04.4]} 31. Qxd5 {[%clk 0:00:28.6]} 31... Qe8 {[%clk 0:00:04.4]} 32. Ne5
{[%clk 0:00:26.1]} 32... Qc8 {[%clk 0:00:02.9]} 33. Qxf7+ {[%clk 0:00:25.7]}
33... Kh8 {[%clk 0:00:02.4]} 34. Ng6+ {[%clk 0:00:25.7]} 34... Kh7 {[%clk
0:00:02.6]} 35. Bd3 {[%clk 0:00:25.4]} 35... Bf5 {[%clk 0:00:02.7]} 36. Nf8+
{[%clk 0:00:23.4]} 36... Kh8 {[%clk 0:00:02.5]} 37. Ng6+ {[%clk 0:00:21]} 37...
Kh7 {[%clk 0:00:02.3]} 38. Ne7 {[%clk 0:00:18.7]} 1-0

[Event "*** SCC Grand Prix: Titled Tuesday Blitz"]
[Site "Chess.com"]
[Date "2020.06.02"]
[Round "1"]
[White "KaterinaMiroshnik"]
[Black "Sam_ChessMood"]
[Result "1/2-1/2"]
[WhiteElo "2429"]
[BlackElo "2844"]
[TimeControl "180+1"]
[EndTime "10:07:18 PDT"]
[Termination "Game drawn by repetition"]

1. d3 {[%clk 0:03:00.8]} 1... d5 {[%clk 0:02:56.7]} 2. Nd2 {[%clk 0:03:01.7]}
2... Nf6 {[%clk 0:02:54.3]} 3. Ngf3 {[%clk 0:03:02.6]} 3... c5 {[%clk
0:02:48.5]} 4. e4 {[%clk 0:03:02.5]} 4... Nc6 {[%clk 0:02:48.8]} 5. Be2 {[%clk
0:03:02.1]} 5... g6 {[%clk 0:02:44.6]} 6. O-O {[%clk 0:03:01.8]} 6... Bg7 {[%clk
0:02:44.9]} 7. c3 {[%clk 0:03:02]} 7... O-O {[%clk 0:02:44.5]} 8. Qc2 {[%clk
0:03:02.2]} 8... e5 {[%clk 0:02:44.2]} 9. Re1 {[%clk 0:03:02.3]} 9... Re8 {[%clk
0:02:44.4]} 10. Bf1 {[%clk 0:03:02.1]} 10... h6 {[%clk 0:02:43.6]} 11. b3 {[%clk
0:03:01.7]} 11... b6 {[%clk 0:02:42.4]} 12. Bb2 {[%clk 0:03:01.7]} 12... Bb7
{[%clk 0:02:41.3]} 13. Rad1 {[%clk 0:03:01.7]} 13... Qc7 {[%clk 0:02:40.7]} 14.
a4 {[%clk 0:03:00.4]} 14... Rad8 {[%clk 0:02:38.9]} 15. g3 {[%clk 0:02:58.7]}
15... Qb8 {[%clk 0:02:27.6]} 16. Bg2 {[%clk 0:02:58]} 16... d4 {[%clk
0:02:27.2]} 17. c4 {[%clk 0:02:57]} 17... Nb4 {[%clk 0:02:13.9]} 18. Qb1 {[%clk
0:02:57]} 18... a6 {[%clk 0:02:13.3]} 19. Rf1 {[%clk 0:02:56.8]} 19... Bc6
{[%clk 0:02:02.2]} 20. Rc1 {[%clk 0:02:50.8]} 20... h5 {[%clk 0:01:54.1]} 21.
Ng5 {[%clk 0:02:40.7]} 21... Bh6 {[%clk 0:01:52.3]} 22. h4 {[%clk 0:02:39.6]}
22... Nh7 {[%clk 0:01:51.9]} 23. f4 {[%clk 0:02:32.3]} 23... f6 {[%clk
0:01:32.4]} 24. Nh3 {[%clk 0:02:22.3]} 24... Bd7 {[%clk 0:01:31.9]} 25. Rce1
{[%clk 0:01:53.2]} 25... Bxh3 {[%clk 0:01:25.3]} 26. Bxh3 {[%clk 0:01:52.8]}
26... exf4 {[%clk 0:01:25.7]} 27. g4 {[%clk 0:01:46.4]} 27... hxg4 {[%clk
0:01:25.7]} 28. Bxg4 {[%clk 0:01:46.4]} 28... f5 {[%clk 0:01:26.1]} 29. exf5
{[%clk 0:01:43.6]} 29... Nf6 {[%clk 0:01:26.3]} 30. Bh3 {[%clk 0:01:42.1]} 30...
Re3 {[%clk 0:01:23.7]} 31. Rf3 {[%clk 0:01:32.1]} 31... Rde8 {[%clk 0:01:10.2]}
32. Ref1 {[%clk 0:01:31.1]} 32... g5 {[%clk 0:00:58.3]} 33. hxg5 {[%clk
0:01:27.3]} 33... Bxg5 {[%clk 0:00:59.2]} 34. Kh1 {[%clk 0:01:27.6]} 34... Kf7
{[%clk 0:00:59.2]} 35. Ne4 {[%clk 0:01:19.4]} 35... Nxe4 {[%clk 0:00:55]} 36.
dxe4 {[%clk 0:01:20.3]} 36... Rh8 {[%clk 0:00:53.4]} 37. Kg2 {[%clk 0:01:12.6]}
37... Qe5 {[%clk 0:00:45.2]} 38. Rxe3 {[%clk 0:01:08.5]} 38... fxe3 {[%clk
0:00:44.6]} 39. f6 {[%clk 0:01:06.2]} 39... Bxf6 {[%clk 0:00:34.2]} 40. Rf5
{[%clk 0:01:01.6]} 40... Rg8+ {[%clk 0:00:32.6]} 41. Kh1 {[%clk 0:00:58.5]}
41... Qg3 {[%clk 0:00:17.1]} 42. Qf1 {[%clk 0:00:57.3]} 42... Qh4 {[%clk
0:00:13.4]} 43. e5 {[%clk 0:00:55.2]} 43... Qe4+ {[%clk 0:00:13.5]} 44. Kh2
{[%clk 0:00:53.7]} 44... Qc2+ {[%clk 0:00:13.4]} 45. Kh1 {[%clk 0:00:52.1]}
45... Qe4+ {[%clk 0:00:13.6]} 46. Kh2 {[%clk 0:00:52.4]} 46... Qc2+ {[%clk
0:00:13.6]} 47. Kh1 {[%clk 0:00:46.1]} 47... Qe4+ {[%clk 0:00:13.8]} 1/2-1/2

[Event "*** SCC Grand Prix: Titled Tuesday Blitz"]
[Site "Chess.com"]
[Date "2020.06.02"]
[Round "1"]
[White "BelaKis"]
[Black "GelmanAlexander"]
[Result "0-1"]
[WhiteElo "2200"]
[BlackElo "2550"]
[TimeControl "180+1"]
[EndTime "10:07:18 PDT"]
[Termination "GelmanAlexander won by resignation"]

1. Nf3 {[%clk 0:03:00.9]} 1... c5 {[%clk 0:02:59.1]} 2. g3 {[%clk 0:02:59.2]}
2... Nf6 {[%clk 0:02:58.8]} 3. Bg2 {[%clk 0:02:59.8]} 3... e6 {[%clk 0:02:59]}
4. O-O {[%clk 0:03:00.5]} 4... Be7 {[%clk 0:02:59.5]} 5. d3 {[%clk 0:03:00.4]}
5... O-O {[%clk 0:02:59.7]} 6. a3 {[%clk 0:03:00.3]} 6... Nc6 {[%clk 0:02:53.6]}
7. Nbd2 {[%clk 0:02:58.4]} 7... d6 {[%clk 0:02:51]} 8. c4 {[%clk 0:02:52.1]}
8... Rb8 {[%clk 0:02:50.8]} 9. Rb1 {[%clk 0:02:51.9]} 9... a6 {[%clk 0:02:51.2]}
10. b4 {[%clk 0:02:50.9]} 10... b5 {[%clk 0:02:46.9]} 11. bxc5 {[%clk
0:02:24.9]} 11... dxc5 {[%clk 0:02:46.3]} 12. cxb5 {[%clk 0:02:25.2]} 12... axb5
{[%clk 0:02:46.5]} 13. Qc2 {[%clk 0:02:15.7]} 13... Ba6 {[%clk 0:02:20.4]} 14.
Bb2 {[%clk 0:02:05.6]} 14... Qc7 {[%clk 0:02:06.6]} 15. Rfc1 {[%clk 0:02:03.7]}
15... Rfc8 {[%clk 0:02:06.2]} 16. Nb3 {[%clk 0:01:21.1]} 16... c4 {[%clk
0:01:58]} 17. dxc4 {[%clk 0:01:05.6]} 17... bxc4 {[%clk 0:01:58.9]} 18. Nbd4
{[%clk 0:01:05.7]} 18... Nxd4 {[%clk 0:01:44.5]} 19. Nxd4 {[%clk 0:01:05.1]}
19... Nd5 {[%clk 0:01:38.3]} 20. e4 {[%clk 0:00:47.6]} 20... Nb6 {[%clk
0:01:26]} 21. a4 {[%clk 0:00:42.7]} 21... Nd7 {[%clk 0:01:19.1]} 22. Nb5 {[%clk
0:00:33.6]} 22... Bxb5 {[%clk 0:01:16.3]} 23. axb5 {[%clk 0:00:34.5]} 23... Rxb5
{[%clk 0:01:16]} 24. Bf1 {[%clk 0:00:31.8]} 24... Rb4 {[%clk 0:01:03.3]} 25. Bc3
{[%clk 0:00:19.2]} 25... Rxb1 {[%clk 0:01:01.5]} 26. Qxb1 {[%clk 0:00:18.4]}
26... Nc5 {[%clk 0:00:52]} 27. Bd4 {[%clk 0:00:13.7]} 27... Qd8 {[%clk
0:00:29.2]} 28. Rxc4 {[%clk 0:00:13.3]} 28... h6 {[%clk 0:00:24.7]} 29. Qc2
{[%clk 0:00:12.7]} 29... Qd6 {[%clk 0:00:18.3]} 30. e5 {[%clk 0:00:11.9]} 30...
Qc7 {[%clk 0:00:16.4]} 31. Bg2 {[%clk 0:00:11.6]} 31... Qa5 {[%clk 0:00:15.8]}
32. h4 {[%clk 0:00:10.4]} 32... Rc7 {[%clk 0:00:15.9]} 33. Kh2 {[%clk
0:00:10.2]} 33... Na6 {[%clk 0:00:16]} 34. Rxc7 {[%clk 0:00:10]} 34... Qxc7
{[%clk 0:00:16]} 35. Qb2 {[%clk 0:00:10]} 35... Nb4 {[%clk 0:00:16]} 36. Qc3
{[%clk 0:00:08.6]} 36... Qxc3 {[%clk 0:00:14.7]} 37. Bxc3 {[%clk 0:00:09.5]}
37... Nd3 {[%clk 0:00:15.2]} 38. Be4 {[%clk 0:00:09.2]} 38... Nxf2 {[%clk
0:00:14.8]} 39. Kg2 {[%clk 0:00:09.5]} 39... Nxe4 {[%clk 0:00:14.6]} 0-1

[Event "*** SCC Grand Prix: Titled Tuesday Blitz"]
[Site "Chess.com"]
[Date "2020.06.02"]
[Round "1"]
[White "PattyCastillo"]
[Black "SoltaniciR"]
[Result "0-1"]
[WhiteElo "1908"]
[BlackElo "2465"]
[TimeControl "180+1"]
[EndTime "10:07:18 PDT"]
[Termination "SoltaniciR won by resignation"]

1. d4 {[%clk 0:03:00.8]} 1... Nf6 {[%clk 0:02:59.4]} 2. Nf3 {[%clk 0:03:00.5]}
2... e6 {[%clk 0:02:58.8]} 3. e3 {[%clk 0:03:00.1]} 3... b6 {[%clk 0:02:57.2]}
4. Bd3 {[%clk 0:02:59.9]} 4... Bb7 {[%clk 0:02:57.6]} 5. b3 {[%clk 0:03:00.1]}
5... c5 {[%clk 0:02:58]} 6. Bb2 {[%clk 0:03:00.2]} 6... Nc6 {[%clk 0:02:55.5]}
7. a3 {[%clk 0:02:58.6]} 7... d5 {[%clk 0:02:51.1]} 8. O-O {[%clk 0:02:56.8]}
8... Bd6 {[%clk 0:02:50.6]} 9. Nbd2 {[%clk 0:02:56.4]} 9... O-O {[%clk
0:02:49.5]} 10. Rc1 {[%clk 0:02:52]} 10... Qe7 {[%clk 0:02:33.7]} 11. Ne5 {[%clk
0:02:44.4]} 11... cxd4 {[%clk 0:02:29.8]} 12. exd4 {[%clk 0:02:43.8]} 12... Bxa3
{[%clk 0:02:30]} 13. Bxa3 {[%clk 0:02:40.4]} 13... Qxa3 {[%clk 0:02:30.9]} 14.
Nxc6 {[%clk 0:02:36.5]} 14... Bxc6 {[%clk 0:02:30.1]} 15. c4 {[%clk 0:02:33.7]}
15... dxc4 {[%clk 0:02:22.7]} 16. Nxc4 {[%clk 0:02:23.5]} 16... Qb4 {[%clk
0:02:08.7]} 17. Ne5 {[%clk 0:02:17.1]} 17... Bd5 {[%clk 0:02:07.5]} 18. Bc2
{[%clk 0:01:59.2]} 18... Rfd8 {[%clk 0:02:02.8]} 19. Re1 {[%clk 0:01:38.3]}
19... Rac8 {[%clk 0:02:00.1]} 20. Qd3 {[%clk 0:01:35.1]} 20... Rc3 {[%clk
0:01:26.1]} 21. Qd2 {[%clk 0:01:21.1]} 21... Rdc8 {[%clk 0:01:23.7]} 22. Bb1
{[%clk 0:00:27.5]} 22... Qxb3 {[%clk 0:01:17.2]} 23. h3 {[%clk 0:00:23.2]} 23...
Rxc1 {[%clk 0:00:25.7]} 24. Rxc1 {[%clk 0:00:22.2]} 24... Rxc1+ {[%clk
0:00:26.2]} 25. Qxc1 {[%clk 0:00:22.4]} 25... g6 {[%clk 0:00:26.4]} 26. Qc8+
{[%clk 0:00:21.4]} 26... Kg7 {[%clk 0:00:26.1]} 27. Bc2 {[%clk 0:00:17.8]} 27...
Qb2 {[%clk 0:00:20.5]} 28. Qc7 {[%clk 0:00:16.9]} 28... Qc1+ {[%clk 0:00:20.3]}
29. Kh2 {[%clk 0:00:15.6]} 29... Qf4+ {[%clk 0:00:20.4]} 30. Kg1 {[%clk
0:00:15.7]} 30... Ne4 {[%clk 0:00:16.6]} 31. Bxe4 {[%clk 0:00:13.6]} 31... Bxe4
{[%clk 0:00:16.1]} 32. g3 {[%clk 0:00:12.4]} 32... Qf5 {[%clk 0:00:12.6]} 33. f3
{[%clk 0:00:11.3]} 33... Bxf3 {[%clk 0:00:11.6]} 34. Nxf3 {[%clk 0:00:05.6]}
34... Qxf3 {[%clk 0:00:11.2]} 35. Qe5+ {[%clk 0:00:05.9]} 35... Qf6 {[%clk
0:00:11.2]} 36. Qb8 {[%clk 0:00:05.6]} 36... Qxd4+ {[%clk 0:00:10]} 0-1

[Event "*** SCC Grand Prix: Titled Tuesday Blitz"]
[Site "Chess.com"]
[Date "2020.06.02"]
[Round "1"]
[White "AlphaHero0"]
[Black "ChessicallyInclined"]
[Result "0-1"]
[WhiteElo "2167"]
[BlackElo "2531"]
[TimeControl "180+1"]
[EndTime "10:07:19 PDT"]
[Termination "ChessicallyInclined won by resignation"]

1. e4 {[%clk 0:03:00.9]} 1... c5 {[%clk 0:02:58.3]} 2. Nf3 {[%clk 0:03:00.9]}
2... Nc6 {[%clk 0:02:58.6]} 3. Bb5 {[%clk 0:03:01.3]} 3... g6 {[%clk 0:02:53]}
4. O-O {[%clk 0:03:00.3]} 4... Bg7 {[%clk 0:02:53.3]} 5. Re1 {[%clk 0:03:00.4]}
5... e5 {[%clk 0:02:53]} 6. Nc3 {[%clk 0:03:00.1]} 6... Nge7 {[%clk 0:02:51.7]}
7. d3 {[%clk 0:02:57.9]} 7... O-O {[%clk 0:02:50.7]} 8. a4 {[%clk 0:02:57.3]}
8... d6 {[%clk 0:02:45.8]} 9. Bc4 {[%clk 0:02:55.2]} 9... h6 {[%clk 0:02:37.8]}
10. h3 {[%clk 0:02:53.3]} 10... Kh7 {[%clk 0:02:36.1]} 11. Bd2 {[%clk
0:02:50.6]} 11... f5 {[%clk 0:02:36.1]} 12. Nd5 {[%clk 0:02:45.1]} 12... f4
{[%clk 0:02:32.9]} 13. Nh2 {[%clk 0:02:40.6]} 13... Nxd5 {[%clk 0:02:27.2]} 14.
Bxd5 {[%clk 0:02:36.5]} 14... Qe8 {[%clk 0:02:20]} 15. c3 {[%clk 0:02:32.4]}
15... g5 {[%clk 0:02:18.6]} 16. f3 {[%clk 0:02:25.6]} 16... h5 {[%clk
0:02:15.3]} 17. a5 {[%clk 0:02:19.5]} 17... Ne7 {[%clk 0:02:12.6]} 18. Bc4
{[%clk 0:02:02.2]} 18... Rb8 {[%clk 0:02:11.5]} 19. b4 {[%clk 0:01:57.5]} 19...
cxb4 {[%clk 0:02:09.4]} 20. cxb4 {[%clk 0:01:58.4]} 20... Nc6 {[%clk 0:02:00.1]}
21. Bb5 {[%clk 0:01:58.5]} 21... Bd7 {[%clk 0:01:57.6]} 22. Bxc6 {[%clk
0:01:56]} 22... Bxc6 {[%clk 0:01:52.4]} 23. Bc3 {[%clk 0:01:56.9]} 23... Qg6
{[%clk 0:01:47.7]} 24. d4 {[%clk 0:01:56.5]} 24... Rbd8 {[%clk 0:01:46.3]} 25.
Qe2 {[%clk 0:01:53.9]} 25... exd4 {[%clk 0:01:44.1]} 26. Bd2 {[%clk 0:01:53.7]}
26... Rfe8 {[%clk 0:01:26.4]} 27. b5 {[%clk 0:01:51.4]} 27... Bd7 {[%clk
0:01:22.4]} 28. Rac1 {[%clk 0:01:42]} 28... d5 {[%clk 0:01:14.4]} 29. Rc7 {[%clk
0:01:32.5]} 29... dxe4 {[%clk 0:01:14.5]} 30. fxe4 {[%clk 0:01:30.2]} 30... a6
{[%clk 0:01:09.1]} 31. Rxb7 {[%clk 0:00:42]} 31... Bxb5 {[%clk 0:01:03]} 32. Qf3
{[%clk 0:00:41.9]} 32... Bc6 {[%clk 0:01:02.1]} 33. Rb6 {[%clk 0:00:42.1]} 33...
d3 {[%clk 0:00:48.2]} 34. Rxc6 {[%clk 0:00:26.2]} 34... Qxc6 {[%clk 0:00:46.6]}
35. Qxh5+ {[%clk 0:00:26.3]} 35... Qh6 {[%clk 0:00:44.9]} 36. Qf3 {[%clk
0:00:25.5]} 36... Bd4+ {[%clk 0:00:43.6]} 37. Kh1 {[%clk 0:00:25.3]} 37... Qh4
{[%clk 0:00:36.5]} 38. Ng4 {[%clk 0:00:14.3]} 38... Rc8 {[%clk 0:00:31.2]} 39.
Qxd3 {[%clk 0:00:11.8]} 39... Bg7 {[%clk 0:00:25.6]} 40. e5+ {[%clk 0:00:10.7]}
40... Kh8 {[%clk 0:00:25.4]} 41. Nf6 {[%clk 0:00:07.8]} 41... Bxf6 {[%clk
0:00:23.6]} 42. exf6 {[%clk 0:00:08.7]} 42... Rxe1+ {[%clk 0:00:23.5]} 43. Bxe1
{[%clk 0:00:07.4]} 43... Qxe1+ {[%clk 0:00:23.8]} 44. Kh2 {[%clk 0:00:08.3]} 0-1

[Event "*** SCC Grand Prix: Titled Tuesday Blitz"]
[Site "Chess.com"]
[Date "2020.06.02"]
[Round "1"]
[White "anon569"]
[Black "DanielMieles1985"]
[Result "0-1"]
[WhiteElo "2254"]
[BlackElo "2593"]
[TimeControl "180+1"]
[EndTime "10:07:25 PDT"]
[Termination "DanielMieles1985 won by resignation"]

1. e4 {[%clk 0:03:00.7]} 1... c5 {[%clk 0:02:58]} 2. Nf3 {[%clk 0:03:00.4]} 2...
Nc6 {[%clk 0:02:57.4]} 3. d4 {[%clk 0:03:00.4]} 3... cxd4 {[%clk 0:02:57.3]} 4.
Nxd4 {[%clk 0:03:01.3]} 4... g6 {[%clk 0:02:58.2]} 5. Nc3 {[%clk 0:03:00.6]}
5... Bg7 {[%clk 0:02:58.5]} 6. Be3 {[%clk 0:03:00.7]} 6... Nf6 {[%clk
0:02:59.1]} 7. Bc4 {[%clk 0:03:00.9]} 7... O-O {[%clk 0:02:59.6]} 8. f3 {[%clk
0:02:59.4]} 8... Qb6 {[%clk 0:02:56.5]} 9. Bb3 {[%clk 0:01:58.9]} 9... Nxe4
{[%clk 0:02:54.9]} 10. Nd5 {[%clk 0:01:56.3]} 10... Qa5+ {[%clk 0:02:52.4]} 11.
c3 {[%clk 0:01:56]} 11... Nc5 {[%clk 0:02:09]} 12. Nxc6 {[%clk 0:01:47.1]} 12...
dxc6 {[%clk 0:02:09.9]} 13. Nxe7+ {[%clk 0:01:46.4]} 13... Kh8 {[%clk
0:02:10.3]} 14. Nxc8 {[%clk 0:01:46.1]} 14... Raxc8 {[%clk 0:02:10.4]} 15. O-O
{[%clk 0:01:44.6]} 15... Rcd8 {[%clk 0:01:57.2]} 16. Qc2 {[%clk 0:01:22.8]}
16... Rd3 {[%clk 0:01:43]} 17. Qf2 {[%clk 0:01:07.9]} 17... b6 {[%clk
0:01:26.7]} 18. Bc2 {[%clk 0:01:00.3]} 18... Qb5 {[%clk 0:01:10.8]} 19. Bxd3
{[%clk 0:00:58.9]} 19... Nxd3 {[%clk 0:01:11.7]} 20. Qd2 {[%clk 0:00:57.1]}
20... Nxb2 {[%clk 0:00:53.3]} 21. Bd4 {[%clk 0:00:43.1]} 21... Nd3 {[%clk
0:00:44.2]} 22. Rad1 {[%clk 0:00:20.4]} 22... Ne5 {[%clk 0:00:32.9]} 23. Rfe1
{[%clk 0:00:19.6]} 23... Nc4 {[%clk 0:00:14.7]} 24. Bxg7+ {[%clk 0:00:17.8]}
24... Kxg7 {[%clk 0:00:15.6]} 25. Qd4+ {[%clk 0:00:18.1]} 25... Kg8 {[%clk
0:00:16.3]} 26. Re4 {[%clk 0:00:16.2]} 26... Na5 {[%clk 0:00:10.3]} 27. Rde1
{[%clk 0:00:16]} 27... c5 {[%clk 0:00:10.1]} 28. Qf6 {[%clk 0:00:14.6]} 28...
Nc4 {[%clk 0:00:08.8]} 29. Re8 {[%clk 0:00:14.2]} 29... Rxe8 {[%clk 0:00:09]}
0-1

[Event "*** SCC Grand Prix: Titled Tuesday Blitz"]
[Site "Chess.com"]
[Date "2020.06.02"]
[Round "1"]
[White "csati17"]
[Black "kingofkolkata"]
[Result "1-0"]
[WhiteElo "2552"]
[BlackElo "2203"]
[TimeControl "180+1"]
[EndTime "10:07:25 PDT"]
[Termination "csati17 won on time"]

1. c4 {[%clk 0:03:00.8]} 1... Nf6 {[%clk 0:02:58.5]} 2. Nc3 {[%clk 0:03:00.5]}
2... e6 {[%clk 0:02:58.7]} 3. e4 {[%clk 0:03:00.2]} 3... d5 {[%clk 0:02:58.7]}
4. cxd5 {[%clk 0:03:01.1]} 4... exd5 {[%clk 0:02:59]} 5. e5 {[%clk 0:03:02]}
5... d4 {[%clk 0:02:56.5]} 6. exf6 {[%clk 0:03:01.9]} 6... dxc3 {[%clk
0:02:56.9]} 7. Bb5+ {[%clk 0:03:02.8]} 7... c6 {[%clk 0:02:55.1]} 8. Qe2+ {[%clk
0:03:03.7]} 8... Be6 {[%clk 0:02:54.2]} 9. Bc4 {[%clk 0:03:04]} 9... Qxf6 {[%clk
0:02:52.9]} 10. dxc3 {[%clk 0:03:03.9]} 10... Nd7 {[%clk 0:02:51.9]} 11. Nf3
{[%clk 0:03:03.4]} 11... O-O-O {[%clk 0:02:48.2]} 12. Bg5 {[%clk 0:02:59.2]}
12... Bxc4 {[%clk 0:02:48.3]} 13. Qxc4 {[%clk 0:02:29]} 13... Re8+ {[%clk
0:02:46.1]} 14. Be3 {[%clk 0:02:02]} 14... Bc5 {[%clk 0:02:43.5]} 15. O-O-O
{[%clk 0:02:02.2]} 15... Bxe3+ {[%clk 0:02:37.9]} 16. fxe3 {[%clk 0:02:03.1]}
16... Rxe3 {[%clk 0:02:20.3]} 17. Qg4 {[%clk 0:02:02]} 17... Rd8 {[%clk
0:02:09.8]} 18. Rd2 {[%clk 0:01:38.6]} 18... Qe6 {[%clk 0:02:07.6]} 19. Qxg7
{[%clk 0:01:35.4]} 19... Qxa2 {[%clk 0:02:03.6]} 20. Qd4 {[%clk 0:01:32.2]}
20... Ree8 {[%clk 0:01:55.1]} 21. Rhd1 {[%clk 0:01:27.7]} 21... Qa5 {[%clk
0:01:31.6]} 22. Qg4 {[%clk 0:00:55.6]} 22... h5 {[%clk 0:01:01.5]} 23. Qf4
{[%clk 0:00:50.8]} 23... Qc7 {[%clk 0:00:19.1]} 24. Qxf7 {[%clk 0:00:46.9]}
24... Nc5 {[%clk 0:00:18.5]} 25. Qf5+ {[%clk 0:00:42.1]} 25... Nd7 {[%clk
0:00:12.9]} 26. Qxh5 {[%clk 0:00:41]} 26... Qf4 {[%clk 0:00:12.1]} 27. Qa5
{[%clk 0:00:24.9]} 27... Kb8 {[%clk 0:00:07]} 28. Kb1 {[%clk 0:00:24.6]} 28...
Qc7 {[%clk 0:00:04.2]} 29. Qf5 {[%clk 0:00:21.3]} 29... Nb6 {[%clk 0:00:04]} 30.
Rxd8+ {[%clk 0:00:19.2]} 30... Rxd8 {[%clk 0:00:04.9]} 31. Rxd8+ {[%clk
0:00:18.4]} 31... Qxd8 {[%clk 0:00:05.8]} 32. Kc2 {[%clk 0:00:17.1]} 32... Nd5
{[%clk 0:00:04.9]} 33. Qe5+ {[%clk 0:00:16.3]} 33... Ka8 {[%clk 0:00:05.4]} 34.
h4 {[%clk 0:00:15.5]} 34... a5 {[%clk 0:00:05.6]} 35. h5 {[%clk 0:00:14.5]}
35... Qg8 {[%clk 0:00:04.2]} 36. Ng5 {[%clk 0:00:12.1]} 1-0